fUSD/lending_fUSD_20241121
["ID","MTS","AMOUNT","RATE_DAILY","PERIOD"]
[342920545,1732205835320,-500.0,0.00038901,11]
[342920546,1732205835348,-500.0,0.00038901,11]
[342920547,1732205835374,-500.0,0.00038901,11]
[342920548,1732205835400,-500.0,0.00038901,11]
[342920549,1732205835428,-500.0,0.00038901,11]
[342920550,1732205835455,-500.0,0.00038901,11]
[342920551,1732205835480,-500.0,0.00038901,11]
[342920552,1732205835506,-500.0,0.00038901,11]
[342920553,1732205835532,-500.0,0.00038901,11]
[342920554,1732205835561,-500.0,0.00038901,11]
[342920555,1732205835585,-500.0,0.00038901,11]
[342920556,1732205835616,-500.0,0.00038901,11]
[342920557,1732205835641,-500.0,0.00038901,11]
[342920558,1732205836111,-500.0,0.00038901,11]
[342920559,1732205836148,-500.0,0.00038901,11]
[342920560,1732205836172,-500.0,0.00038901,11]
[342920561,1732205836196,-500.0,0.00038901,11]
[342920562,1732205836222,-500.0,0.00038901,11]
[342920563,1732205836245,-500.0,0.00038901,11]
[342920564,1732205836268,-500.0,0.00038901,11]
[342920565,1732205836292,-387.94552609,0.00038901,11]
[342920566,1732205836314,-500.0,0.00038901,11]
[342920567,1732205836337,-500.0,0.00038901,11]
[342920568,1732205836359,-173.52,0.00038901,7]
[342920569,1732205836384,-500.0,0.00038901,11]
[342920570,1732205836408,-500.0,0.00038901,11]
[342920571,1732205836432,-500.0,0.00038901,11]
[342920572,1732205836458,-500.0,0.00038901,11]
[342920573,1732205836480,-500.0,0.00038901,11]
[342920574,1732205836504,-500.0,0.00038901,11]
[342920575,1732205836527,-500.0,0.00038901,11]
[342920576,1732205836551,-500.0,0.00038901,11]
[342920577,1732205836573,-500.0,0.00038901,11]
[342920578,1732205836602,-500.0,0.00038901,11]
[342920579,1732205836625,-500.0,0.00038901,11]
[342920580,1732205836648,-500.0,0.00038901,11]
[342920581,1732205836671,-500.0,0.00038901,11]
[342920582,1732205836693,-500.0,0.00038901,11]
[342920583,1732205836717,-500.0,0.00038901,11]
[342920584,1732205836740,-500.0,0.00038901,11]
[342920585,1732205836763,-500.0,0.00038901,11]
[342920586,1732205836786,-500.0,0.00038901,11]
[342920587,1732205836808,-500.0,0.00038901,11]
[342920588,1732205836831,-500.0,0.00038901,11]
[342920589,1732205836854,-510.27,0.00038901,11]
[342920590,1732205836876,-481.50717855,0.00038901,11]
[342920591,1732205836900,-500.0,0.00038901,11]
[342920592,1732205836923,-500.0,0.00038901,11]
[342920593,1732205836948,-500.0,0.00038901,11]
[342920594,1732205836974,-500.0,0.00038901,11]
[342920595,1732205836997,-500.0,0.00038901,11]
[342920596,1732205837020,-500.0,0.00038901,11]
[342920597,1732205837044,-500.0,0.00038901,11]
[342920598,1732205837067,-500.0,0.00038901,11]
[342920599,1732205837089,-2800.65,0.00038901,11]
[342920600,1732205837112,-1355.81,0.00038901,11]
[342920601,1732205837135,-500.0,0.00038901,11]
[342920602,1732205837157,-500.0,0.00038901,11]
[342920603,1732205837179,-558.81,0.00038901,11]
[342920604,1732205837201,-500.0,0.00038901,11]
[342920605,1732205837228,-573.38,0.00038901,11]
[342920606,1732205837251,-500.0,0.00038901,11]
[342920607,1732205837274,-500.0,0.00038901,11]
[342920608,1732205837296,-1467.56,0.00038901,11]
[342920609,1732205837318,-1017.23,0.00038901,11]
[342920610,1732205837344,-500.0,0.00038901,11]
[342920611,1732205837367,-531.63,0.00038901,11]
[342920612,1732205837390,-500.0,0.00038901,11]
[342920613,1732205837412,-752.16,0.00038901,11]
[342920614,1732205837434,-500.0,0.00038901,7]
[342920615,1732205837462,-816.81,0.00038901,11]
[342920616,1732205837492,-500.0,0.00038901,11]
[342920617,1732205837518,-500.0,0.00038901,11]
[342920618,1732205837542,-500.0,0.00038901,11]
[342920619,1732205837565,-1631.33,0.00038901,11]
[342920620,1732205837589,-500.0,0.00038901,11]
[342920621,1732205837611,-1437.06,0.00038901,11]
[342920622,1732205837634,-500.0,0.00038901,11]
[342920623,1732205837656,-500.0,0.00038901,11]
[342920624,1732205837678,-494.84326508,0.00038901,11]
[342920625,1732205837701,-1094.01,0.00038901,11]
[342920626,1732205837730,-1496.7,0.00038901,11]
[342920627,1732205837751,-500.0,0.00038901,11]
[342920628,1732205837774,-1057.64,0.00038901,11]
[342920629,1732205837796,-500.0,0.00038901,11]
[342920630,1732205837819,-500.0,0.00038901,11]
[342920631,1732205837842,-571.38856557,0.00038901,11]
[342920632,1732205837866,-1832.94,0.00038901,11]
[342920633,1732205837888,-500.0,0.00038901,11]
[342920634,1732205837911,-500.0,0.00038901,11]
[342920635,1732205837934,-1000.0,0.00038901,2]
[342920636,1732205837960,-500.0,0.00038901,11]
[342920637,1732205837983,-1679.89,0.00038901,11]
[342920638,1732205838005,-500.0,0.00038901,11]
[342920639,1732205838029,-500.0,0.00038901,11]
[342920640,1732205838053,-500.0,0.00038901,11]
[342920641,1732205838078,-478.26027188,0.00038901,11]
[342920642,1732205838847,-150.0,0.00038273,2]
[342920643,1732205839085,-150.0,0.00038273,2]
[342920644,1732205839148,-132.90379701,0.00038273,2]
[342920645,1732205839169,-17.09620299,0.00038356,11]
[342920646,1732205839198,-150.0,0.00038356,11]
[342920647,1732205839248,-150.0,0.00038356,11]
[342920648,1732205839284,-117.53429109,0.00038356,11]
[342920649,1732205839306,-32.46570891,0.00038356,11]
[342920650,1732205839361,-150.0,0.00038356,11]
[342920651,1732205839473,-150.0,0.00038356,11]
[342920652,1732205839509,-150.0,0.00038356,11]
[342920653,1732205839544,-17.53429109,0.00038356,11]
[342920654,1732205839565,-132.46570891,0.00038356,11]
[342920655,1732205839637,-150.0,0.00038356,11]
[342920656,1732205839677,-150.0,0.00038346,10]
[342920657,1732205839714,-150.0,0.00038346,10]
[342920658,1732205839753,-47.51,0.00038346,10]
[342920659,1732205839774,-102.49,0.00038356,11]
[342920660,1732205839810,-115.04429109,0.00038356,11]
[342920661,1732205839832,-34.95570891,0.00038626,11]
[342920662,1732205839896,-150.0,0.00038626,11]
[342920663,1732205839930,-150.0,0.00038626,11]
[342920664,1732205839977,-150.0,0.00038356,11]
[342920665,1732205840013,-150.0,0.00038356,11]
[342920666,1732205840066,-150.0,0.00038356,11]
[342920667,1732205840110,-50.0,0.00038356,11]
[342920668,1732205840132,-100.0,0.00038356,11]
[342920669,1732205840165,-150.0,0.00038356,11]
[342920670,1732205840214,-150.0,0.00038356,11]
[342920671,1732205840259,-100.0,0.00038356,11]
[342920672,1732205840281,-50.0,0.00038626,11]
[342920673,1732205840328,-115.04429109,0.00038626,11]
[342920674,1732205840349,-34.95570891,0.00038626,11]
[342920675,1732205840410,-150.0,0.00038356,11]
[342920676,1732205840449,-150.0,0.00038356,11]
[342920677,1732205840491,-64.41143224,0.00038356,11]
[342920678,1732205840519,-85.58856776,0.00038626,11]
[342920679,1732205840546,-150.0,0.00038626,11]
[342920680,1732205840590,-150.0,0.00038256,2]
[342920681,1732205840625,-150.0,0.00038256,2]
[342920682,1732205840657,-19.55366678,0.00038256,2]
[342920683,1732205840680,-130.44633322,0.00038626,11]
[342920684,1732205840721,-99.00939011,0.00038626,11]
[342920685,1732205840743,-50.99060989,0.00038627,11]
[342920686,1732205840779,-150.0,0.00038627,11]
[342920687,1732205840809,-150.0,0.00038627,11]
[342920688,1732205840852,-150.0,0.00038356,11]
[342920689,1732205840971,-150.0,0.00038356,11]
[342920690,1732205841009,-150.0,0.00038356,11]
[342920691,1732205841051,-150.0,0.00037896,2]
[342920692,1732205841089,-100.0,0.00037896,2]
[342920693,1732205841110,-50.0,0.00038356,11]
[342920694,1732205841131,-7.29,0.00038356,11]
[342920697,1732206309150,150.0,0.0001,2]
[342920698,1732206309173,150.0,0.0001,2]
[342920699,1732206309196,150.0,0.0001,2]
[342920700,1732206309218,150.0,0.0001,2]
[342920701,1732206309241,150.0,0.0001,2]
[342920702,1732206309262,150.0,0.0001,2]
[342920703,1732206309283,150.0,0.0001,2]
[342920704,1732206309304,150.0,0.0001,2]
[342920705,1732206309325,150.0,0.0001,2]
[342920706,1732206309345,150.0,0.0001,2]
[342920707,1732206309372,150.0,0.0001,2]
[342920708,1732206309393,150.0,0.0001,2]
[342920709,1732206309415,150.0,0.0001,2]
[342920710,1732206309437,150.0,0.0001,2]
[342920711,1732206309463,150.0,0.0001,2]
[342920712,1732206309485,150.0,0.0001,2]
[342920713,1732206309506,150.0,0.0001,2]
[342920714,1732206309528,150.0,0.0001,2]
[342920715,1732206309548,207.29,0.0001,2]
[342920716,1732206309571,150.0,0.0001,2]
[342920717,1732206309595,4113.14345538,0.0001,2]
[342920718,1732206320309,150.0,9e-05,2]
[342920719,1732206320333,150.0,9e-05,2]
[342920720,1732206320356,150.0,9e-05,2]
[342920721,1732206320384,150.0,9e-05,2]
[342920722,1732206320408,150.0,9e-05,2]
[342920723,1732206320431,150.0,9e-05,2]
[342920724,1732206320455,150.0,9e-05,2]
[342920725,1732206320477,150.0,9e-05,2]
[342920726,1732206320499,150.0,9e-05,2]
[342920727,1732206320522,150.0,9e-05,2]
[342920728,1732206320544,140.482506,9e-05,2]
[342920729,1732206354751,13880.50372691,9.336e-05,2]
[342920730,1732206357132,-157.22,0.00015342,2]
[342920731,1732206357154,-150.0,0.00016862,2]
[342920732,1732206357177,-157.22,0.000221,2]
[342920733,1732206357198,-468.8495,0.00022824,2]
[342920734,1732206357220,-500.0,0.00024932,2]
[342920735,1732206357241,-2095.62928775,0.00025,2]
[342920736,1732206357261,-247.72825918,0.00025,2]
[342920737,1732206357281,-198.54117262,0.00026986,120]
[342920738,1732206358092,-184.27816698,0.00026986,120]
[342920739,1732206431164,330.44673015,9.6e-05,2]
[342920740,1732206448313,94665.88733617,1e-06,7]
[342920741,1732206448339,40788.93391577,1e-06,7]
[342920742,1732206454101,-247.32802877,0.000101,2]
[342920743,1732206454123,-150.0,0.00016868,2]
[342920744,1732206454145,-153.644,0.00022665,2]
[342920745,1732206454167,-153.0,0.00026655,2]
[342920746,1732206454189,-153.0,0.00026655,2]
[342920747,1732206454212,-153.0,0.00026655,2]
[342920748,1732206454234,-153.0,0.00026655,2]
[342920749,1732206454256,-417.1806604,0.00026986,120]
[342920750,1732206454281,-400.0,0.00026986,120]
[342920751,1732206454304,-157.22,0.00028858,2]
[342920752,1732206454326,-468.8495,0.00032478,2]
[342920753,1732206454348,-300.0,0.00034999,3]
[342920754,1732206454370,-4109.8539699,0.00035,30]
[342920758,1732206552093,-645.0414506,0.0002,4]
[342920759,1732206552119,-162.87107982,0.0002,7]
[342920760,1732206552141,-300.0,0.00023921,2]
[342920761,1732206552162,-280.0,0.00023921,10]
[342920762,1732206552184,-2796.80596328,0.00023922,2]
[342920763,1732206554091,-204.72487376,0.00023922,2]
[342920764,1732206554122,-7337.49956551,0.00023922,2]
[342920765,1732206554153,-112217.83832066,0.00023922,2]
[342920766,1732206554173,-289.94007704,0.00025,2]
[342920767,1732206554195,-153.0,0.00026655,2]
[342920768,1732206554217,-153.0,0.00026655,2]
[342920769,1732206554241,-153.0,0.00026655,2]
[342920770,1732206554264,-153.0,0.00026655,2]
[342920771,1732206554286,-153.0,0.00026655,2]
[342920772,1732206554307,-153.0,0.00026655,2]
[342920773,1732206554327,-153.0,0.00026655,2]
[342920774,1732206554348,-236.75666579,0.0003,2]
[342920783,1732206571087,-1763.24333321,0.0003,2]
[342920784,1732206571107,-1485.63288622,0.0003,30]
[342920785,1732206582609,432.90379701,0.00024,2]
[342920791,1732206590313,153.0,0.00026655,2]
[342920792,1732206590541,153.0,0.00026655,2]
[342920793,1732206590766,153.0,0.00026655,2]
[342920811,1732206631834,-1021.07516134,0.0003,30]
[342920812,1732206631844,-499.999999,0.0003121,2]
[342920813,1732206631853,-11136.95774305,0.00032,90]
[342920814,1732206631865,-3738.36568354,0.00032,90]
[342920815,1732206631877,-9271.35420982,0.00032,90]
[342920816,1732206631887,-394.41707723,0.00035,30]
[342920817,1732206631936,-512.9782986,0.00035,30]
[342920824,1732206637518,-850.81000002,0.00035,30]
[342920825,1732206637625,-3587.94351774,0.00035,30]
[342920826,1732206637634,-1635.249999,0.00035,2]
[342920827,1732206637643,-1005.7,0.00035175,2]
[342920828,1732206637652,-250.0,0.00035559,2]
[342920829,1732206637661,-250.0,0.00035559,2]
[342920830,1732206637670,-157.22,0.00035616,2]
[342920831,1732206637682,-160.93,0.00035699,2]
[342920832,1732206637692,-160.93,0.00035708,2]
[342920833,1732206637703,-160.93,0.00035718,2]
[342920834,1732206637713,-160.93,0.00035727,2]
[342920835,1732206637722,-160.93,0.00035736,2]
[342920836,1732206637731,-160.93,0.00035746,2]
[342920837,1732206637742,-160.93,0.00035755,2]
[342920838,1732206637751,-160.93,0.00035765,2]
[342920839,1732206637761,-160.93,0.00035774,2]
[342920840,1732206637770,-160.93,0.00035783,2]
[342920841,1732206637779,-160.93,0.00035793,2]
[342920842,1732206637791,-160.93,0.00035802,2]
[342920843,1732206637800,-160.93,0.00035812,2]
[342920844,1732206637808,-1563.4,0.00035821,2]
[342920845,1732206637817,-160.93,0.00035821,2]
[342920846,1732206637826,-160.93,0.0003583,2]
[342920847,1732206637836,-160.93,0.0003584,2]
[342920848,1732206637845,-160.93,0.00035849,2]
[342920849,1732206637855,-160.93,0.00035859,2]
[342920850,1732206637864,-160.93,0.00035868,2]
[342920851,1732206637875,-160.93,0.00035877,2]
[342920852,1732206637883,-435.85,0.00035888,2]
[342920853,1732206637893,-313.38,0.00036298,3]
[342920854,1732206637902,-201.11,0.00036298,10]
[342920855,1732206637911,-313.99,0.00036298,10]
[342920856,1732206637921,-2945.8024988,0.000363,15]
[342920857,1732206637936,-176.58733407,0.000363,2]
[342920858,1732206637951,-211.0,0.00036308,2]
[342920859,1732206637962,-150.0,0.00036308,2]
[342920860,1732206637972,-150.0,0.00036308,2]
[342920861,1732206637982,-171.559999,0.00036308,2]
[342920862,1732206637991,-234.28332232,0.00036308,2]
[342920863,1732206638000,-25193.12914425,0.00036308,2]
[342920864,1732206638009,-11388.76763867,0.00036308,2]
[342920865,1732206638018,-287296.41196318,0.00036308,4]
[342920866,1732206638028,-600.0,0.000364,120]
[342920867,1732206638038,-370.6,0.00036402,2]
[342920868,1732206638047,-200.0,0.00036463,2]
[342920869,1732206638056,-500.0,0.00036508,2]
[342920870,1732206638065,-4179.64,0.00036511,63]
[342920871,1732206638075,-200.0,0.00036517,2]
[342920872,1732206638085,-1693.23,0.00036523,2]
[342920873,1732206638097,-5071.81,0.00036621,2]
[342920874,1732206638106,-1000.0,0.000368,2]
[342920876,1732206638116,-17452.28,0.00036826,2]
[342920878,1732206638125,-250.0,0.00036897,2]
[342920880,1732206638135,-190.73,0.00036968,120]
[342920882,1732206638144,-831.51,0.00037161,2]
[342920884,1732206638153,-23900.0,0.00037224,2]
[342920886,1732206638162,-150.35,0.00037252,2]
[342920888,1732206638171,-2000.0,0.00037346,120]
[342920890,1732206638184,-1005.7,0.00037439,2]
[342920892,1732206638193,-300.0,0.00037502,2]
[342920894,1732206638202,-2945.80249875,0.00037589,15]
[342920896,1732206638212,-161.31,0.00037779,2]
[342920898,1732206638221,-250.0,0.00037779,120]
[342920900,1732206638230,-22967.01,0.00037779,2]
[342920902,1732206638240,-1000.0,0.00037803,2]
[342920904,1732206638249,-191.92,0.00038109,120]
[342920906,1732206638258,-1000.0,0.00038162,2]
[342920908,1732206638267,-1693.23,0.00038349,2]
[342920910,1732206638276,-4038.485,0.00038355,51]
[342920912,1732206638285,-180.261,0.00038355,51]
[342920913,1732206638295,-500.0,0.00038356,11]
[342920915,1732206638304,-500.0,0.00038356,11]
[342920917,1732206638313,-500.0,0.00038356,11]
[342920919,1732206638322,-500.0,0.00038356,11]
[342920921,1732206638331,-646.04193135,0.00038356,11]
[342920923,1732206638340,-500.0,0.00038356,11]
[342920925,1732206638349,-500.0,0.00038356,11]
[342920927,1732206638358,-500.0,0.00038356,11]
[342920929,1732206638367,-500.0,0.00038356,11]
[342920931,1732206638376,-500.0,0.00038356,11]
[342920933,1732206638384,-500.0,0.00038356,11]
[342920935,1732206638393,-500.0,0.00038356,11]
[342920937,1732206638403,-500.0,0.00038356,11]
[342920939,1732206638412,-500.0,0.00038356,11]
[342920941,1732206638421,-500.0,0.00038356,11]
[342920943,1732206638433,-500.0,0.00038356,11]
[342920945,1732206638443,-500.0,0.00038356,11]
[342920947,1732206638452,-500.0,0.00038356,11]
[342920949,1732206638461,-500.0,0.00038356,11]
[342920951,1732206638470,-500.0,0.00038356,11]
[342920953,1732206638479,-500.0,0.00038356,11]
[342920955,1732206638488,-500.0,0.00038356,11]
[342920957,1732206638497,-500.0,0.00038356,11]
[342920959,1732206638506,-500.0,0.00038356,11]
[342920961,1732206638516,-500.0,0.00038356,11]
[342920963,1732206638525,-500.0,0.00038356,11]
[342920965,1732206638534,-500.0,0.00038356,11]
[342920967,1732206638543,-500.0,0.00038356,11]
[342920969,1732206638551,-500.0,0.00038356,11]
[342920971,1732206638561,-500.0,0.00038356,11]
[342920973,1732206638570,-500.0,0.00038356,11]
[342920975,1732206638579,-500.0,0.00038356,11]
[342920977,1732206638589,-500.0,0.00038356,11]
[342920979,1732206638598,-306.86699652,0.00038356,11]
[342920981,1732206638608,-500.0,0.00038356,11]
[342920983,1732206638617,-500.0,0.00038356,11]
[342920985,1732206638626,-500.0,0.00038356,11]
[342920987,1732206638635,-500.0,0.00038356,11]
[342920989,1732206638644,-500.0,0.00038356,11]
[342920991,1732206638653,-251.19222044,0.00038356,11]
[342920993,1732206638662,-500.0,0.00038356,11]
[342920995,1732206638672,-500.0,0.00038356,11]
[342920997,1732206638684,-500.0,0.00038356,11]
[342920999,1732206638694,-500.0,0.00038356,11]
[342921001,1732206638708,-500.0,0.00038356,11]
[342921003,1732206638718,-500.0,0.00038356,11]
[342921005,1732206638727,-500.0,0.00038356,11]
[342921007,1732206638736,-500.0,0.00038356,11]
[342921009,1732206638746,-500.0,0.00038356,11]
[342921011,1732206638757,-810.6,0.00038356,11]
[342921013,1732206638766,-500.0,0.00038356,11]
[342921015,1732206638776,-500.0,0.00038356,11]
[342921017,1732206638786,-500.0,0.00038356,11]
[342921019,1732206638795,-500.0,0.00038356,11]
[342921021,1732206638804,-500.0,0.00038356,11]
[342921023,1732206638813,-500.0,0.00038356,11]
[342921025,1732206638824,-500.0,0.00038356,11]
[342921027,1732206638833,-500.0,0.00038356,11]
[342921029,1732206638842,-500.0,0.00038356,11]
[342921031,1732206638852,-500.0,0.00038356,11]
[342921033,1732206638861,-500.0,0.00038356,11]
[342921035,1732206638871,-500.0,0.00038356,11]
[342921037,1732206638881,-500.0,0.00038356,11]
[342921039,1732206638891,-500.0,0.00038356,11]
[342921041,1732206638901,-500.0,0.00038356,11]
[342921043,1732206638911,-500.0,0.00038356,11]
[342921045,1732206638921,-500.0,0.00038356,11]
[342921047,1732206638933,-500.0,0.00038356,11]
[342921049,1732206638943,-500.0,0.00038356,11]
[342921051,1732206638952,-685.12,0.00038356,11]
[342921053,1732206638962,-500.0,0.00038356,11]
[342921055,1732206638971,-500.0,0.00038356,11]
[342921057,1732206638981,-186.928284,0.00038356,11]
[342921059,1732206638990,-500.0,0.00038356,11]
[342921061,1732206639000,-200.0,0.00038356,7]
[342921063,1732206639010,-500.0,0.00038356,11]
[342921065,1732206639020,-500.0,0.00038356,11]
[342921067,1732206639029,-791.73,0.00038356,11]
[342921069,1732206639038,-500.0,0.00038356,11]
[342921071,1732206639048,-500.0,0.00038356,11]
[342921073,1732206639058,-500.0,0.00038356,11]
[342921075,1732206639068,-500.0,0.00038356,11]
[342921077,1732206639077,-500.0,0.00038356,11]
[342921079,1732206639087,-500.0,0.00038356,11]
[342921081,1732206639097,-500.0,0.00038356,11]
[342921083,1732206639106,-543.98714385,0.00038356,11]
[342921085,1732206639115,-500.0,0.00038356,11]
[342921087,1732206639125,-500.0,0.00038356,11]
[342921089,1732206639134,-500.0,0.00038356,11]
[342921091,1732206639143,-500.0,0.00038356,11]
[342921093,1732206639153,-500.0,0.00038356,11]
[342921095,1732206639162,-500.0,0.00038356,11]
[342921096,1732206639171,-500.0,0.00038356,11]
[342921097,1732206639186,-500.0,0.00038356,11]
[342921098,1732206639196,-500.0,0.00038356,11]
[342921099,1732206639205,-500.0,0.00038356,11]
[342921100,1732206639215,-500.0,0.00038356,11]
[342921101,1732206639225,-500.0,0.00038356,11]
[342921102,1732206639234,-500.0,0.00038356,11]
[342921103,1732206639244,-500.0,0.00038356,11]
[342921104,1732206639254,-1017.79,0.00038356,11]
[342921105,1732206639264,-500.0,0.00038356,11]
[342921106,1732206639273,-500.0,0.00038356,11]
[342921107,1732206639283,-2000.0,0.00038356,30]
[342921108,1732206639293,-500.0,0.00038356,11]
[342921109,1732206639302,-500.0,0.00038356,11]
[342921110,1732206639312,-500.0,0.00038356,11]
[342921111,1732206639322,-500.0,0.00038356,11]
[342921112,1732206639331,-500.0,0.00038356,11]
[342921113,1732206639341,-500.0,0.00038356,11]
[342921115,1732206639350,-500.0,0.00038356,11]
[342921117,1732206639360,-500.0,0.00038356,11]
[342921118,1732206639370,-500.0,0.00038356,11]
[342921119,1732206639380,-500.0,0.00038356,11]
[342921120,1732206639389,-500.0,0.00038356,11]
[342921121,1732206639398,-500.0,0.00038356,11]
[342921123,1732206639408,-500.0,0.00038356,11]
[342921124,1732206639418,-500.0,0.00038356,11]
[342921125,1732206639427,-500.0,0.00038356,11]
[342921126,1732206639440,-500.0,0.00038356,11]
[342921127,1732206639450,-1000.0,0.00038356,11]
[342921128,1732206639461,-500.0,0.00038356,11]
[342921130,1732206639658,-500.0,0.00038356,11]
[342921131,1732206639670,-500.0,0.00038356,11]
[342921132,1732206639681,-687.32,0.00038356,11]
[342921133,1732206639691,-500.0,0.00038356,11]
[342921134,1732206639702,-500.0,0.00038356,11]
[342921135,1732206639713,-500.0,0.00038356,11]
[342921136,1732206639722,-500.0,0.00038356,11]
[342921137,1732206639732,-500.0,0.00038356,11]
[342921138,1732206639743,-500.0,0.00038356,11]
[342921139,1732206639752,-621.24,0.00038356,11]
[342921140,1732206639762,-500.0,0.00038356,11]
[342921141,1732206639771,-500.0,0.00038356,11]
[342921142,1732206639784,-855.67,0.00038356,11]
[342921143,1732206639794,-500.0,0.00038356,11]
[342921144,1732206639803,-500.0,0.00038356,11]
[342921145,1732206639814,-500.0,0.00038356,11]
[342921146,1732206639823,-500.0,0.00038356,11]
[342921147,1732206639833,-500.0,0.00038356,11]
[342921148,1732206639842,-500.0,0.00038356,11]
[342921149,1732206639851,-500.0,0.00038356,11]
[342921150,1732206639861,-500.0,0.00038356,11]
[342921151,1732206639870,-500.0,0.00038356,11]
[342921152,1732206639880,-500.0,0.00038356,11]
[342921153,1732206639889,-500.0,0.00038356,11]
[342921154,1732206639898,-500.0,0.00038356,11]
[342921156,1732206639908,-500.0,0.00038356,11]
[342921158,1732206639917,-734.07,0.00038356,11]
[342921159,1732206639926,-500.0,0.00038356,11]
[342921160,1732206639939,-500.0,0.00038356,11]
[342921161,1732206639949,-500.0,0.00038356,11]
[342921162,1732206639958,-500.0,0.00038356,11]
[342921163,1732206639967,-500.0,0.00038356,11]
[342921164,1732206639977,-500.0,0.00038356,11]
[342921165,1732206639986,-500.0,0.00038356,11]
[342921166,1732206639995,-500.0,0.00038356,11]
[342921167,1732206640005,-500.0,0.00038356,11]
[342921168,1732206640015,-500.0,0.00038356,11]
[342921169,1732206640024,-500.0,0.00038356,11]
[342921170,1732206640034,-500.0,0.00038356,11]
[342921171,1732206640043,-500.0,0.00038356,11]
[342921172,1732206640052,-500.0,0.00038356,11]
[342921173,1732206640061,-500.0,0.00038356,11]
[342921174,1732206640071,-705.52,0.00038356,11]
[342921175,1732206640080,-500.0,0.00038356,11]
[342921176,1732206640090,-453.54402574,0.00038356,2]
[342921177,1732206640099,-500.0,0.00038356,11]
[342921178,1732206640108,-500.0,0.00038356,11]
[342921180,1732206640118,-500.0,0.00038356,11]
[342921182,1732206640127,-500.0,0.00038356,11]
[342921184,1732206640137,-500.0,0.00038356,11]
[342921186,1732206640146,-500.0,0.00038356,11]
[342921188,1732206640156,-500.0,0.00038356,11]
[342921190,1732206640165,-500.0,0.00038356,11]
[342921192,1732206640174,-500.0,0.00038356,11]
[342921194,1732206640186,-521.23,0.00038356,11]
[342921196,1732206640195,-500.0,0.00038356,11]
[342921198,1732206640204,-500.0,0.00038356,11]
[342921200,1732206640214,-500.0,0.00038356,11]
[342921202,1732206640223,-500.0,0.00038356,11]
[342921204,1732206640233,-500.0,0.00038356,11]
[342921206,1732206640243,-500.0,0.00038356,11]
[342921208,1732206640252,-513.37367478,0.00038356,11]
[342921210,1732206640262,-500.0,0.00038356,11]
[342921212,1732206640271,-641.39,0.00038356,11]
[342921214,1732206640280,-500.0,0.00038356,11]
[342921216,1732206640290,-500.0,0.00038356,11]
[342921218,1732206640299,-500.0,0.00038356,11]
[342921220,1732206640308,-500.0,0.00038356,11]
[342921222,1732206640317,-500.0,0.00038356,11]
[342921224,1732206640327,-500.0,0.00038356,11]